fUSD/lending_fUSD_20240327
["ID","MTS","AMOUNT","RATE_DAILY","PERIOD"]
[320824499,1711582245088,-500.0,0.00054246,120]
[320824500,1711582245099,-500.0,0.00054246,120]
[320824501,1711582245108,-569.91041064,0.00054246,120]
[320824502,1711582245117,-500.0,0.00054246,120]
[320824503,1711582245128,-500.0,0.00054246,120]
[320824504,1711582245138,-1264.77,0.00054246,120]
[320824505,1711582245148,-500.0,0.00054246,120]
[320824506,1711582245161,-788.77,0.00054246,120]
[320824507,1711582245172,-759.23,0.00054246,120]
[320824508,1711582245181,-500.0,0.00054246,120]
[320824509,1711582245191,-703.1,0.00054246,120]
[320824510,1711582245200,-500.0,0.00054246,120]
[320824511,1711582245210,-500.0,0.00054246,120]
[320824512,1711582245219,-500.0,0.00054246,120]
[320824513,1711582245229,-500.0,0.00054246,120]
[320824514,1711582245239,-503.53,0.00054246,120]
[320824515,1711582245249,-500.0,0.00054246,120]
[320824516,1711582245260,-588.52,0.00054246,120]
[320824517,1711582245270,-402.43298192,0.00054246,120]
[320824518,1711582245279,-500.0,0.00054246,120]
[320824519,1711582245290,-500.0,0.00054246,120]
[320824520,1711582245300,-500.0,0.00054246,120]
[320824521,1711582245310,-500.0,0.00054246,120]
[320824522,1711582245319,-500.0,0.00054246,120]
[320824523,1711582245329,-1240.86,0.00054246,120]
[320824524,1711582245339,-529.66,0.00054246,120]
[320824525,1711582245350,-747.63,0.00054246,120]
[320824526,1711582245360,-500.0,0.00054246,120]
[320824527,1711582245369,-190.73,0.00054246,120]
[320824528,1711582245379,-760.96,0.00054246,120]
[320824529,1711582245389,-644.94,0.00054246,120]
[320824530,1711582245399,-500.0,0.00054246,120]
[320824531,1711582245409,-596.21,0.00054246,120]
[320824532,1711582245418,-500.0,0.00054246,120]
[320824533,1711582245428,-500.0,0.00054246,120]
[320824534,1711582245437,-500.0,0.00054246,120]
[320824535,1711582245448,-737.93,0.00054246,120]
[320824536,1711582245459,-500.0,0.00054246,120]
[320824537,1711582245468,-500.0,0.00054246,120]
[320824538,1711582245477,-500.0,0.00054246,120]
[320824539,1711582245487,-500.0,0.00054246,120]
[320824540,1711582245497,-425.57389671,0.00054246,120]
[320824541,1711582245659,-550.19,0.00054246,120]
[320824542,1711582245669,-500.0,0.00054246,120]
[320824543,1711582245678,-500.0,0.00054246,120]
[320824544,1711582245687,-500.0,0.00054246,120]
[320824545,1711582245696,-500.0,0.00054246,120]
[320824546,1711582245705,-1257.23,0.00054246,120]
[320824547,1711582245714,-500.0,0.00054246,120]
[320824548,1711582245723,-500.0,0.00054246,120]
[320824549,1711582245733,-500.0,0.00054246,120]
[320824550,1711582245743,-500.0,0.00054246,120]
[320824551,1711582245752,-617.53,0.00054246,120]
[320824552,1711582245761,-500.0,0.00054246,120]
[320824553,1711582245770,-558.49,0.00054246,120]
[320824554,1711582245780,-500.0,0.00054246,120]
[320824555,1711582245789,-500.0,0.00054246,120]
[320824556,1711582245798,-500.0,0.00054246,120]
[320824557,1711582245808,-500.0,0.00054246,120]
[320824558,1711582245818,-500.0,0.00054246,120]
[320824559,1711582245828,-500.0,0.00054246,120]
[320824560,1711582245839,-500.0,0.00054246,120]
[320824561,1711582245850,-579.51,0.00054246,120]
[320824562,1711582245859,-735.35,0.00054246,120]
[320824563,1711582245869,-500.0,0.00054246,120]
[320824564,1711582245879,-844.19,0.00054246,120]
[320824565,1711582245889,-500.0,0.00054246,120]
[320824566,1711582245898,-500.0,0.00054246,120]
[320824567,1711582245906,-1309.86,0.00054246,120]
[320824568,1711582245917,-500.0,0.00054246,120]
[320824569,1711582245926,-500.0,0.00054246,120]
[320824570,1711582245935,-500.0,0.00054246,120]
[320824571,1711582245945,-1596.79,0.00054246,120]
[320824572,1711582245955,-607.88,0.00054246,120]
[320824573,1711582245965,-157.23663567,0.00054246,120]
[320824574,1711582245975,-500.0,0.00054246,120]
[320824575,1711582245984,-500.0,0.00054246,120]
[320824576,1711582245993,-500.0,0.00054246,120]
[320824577,1711582246002,-500.0,0.00054246,120]
[320824578,1711582246011,-500.0,0.00054246,120]
[320824579,1711582246021,-1188.79,0.00054246,120]
[320824580,1711582246030,-509.94271774,0.00054246,120]
[320824581,1711582246039,-500.0,0.00054246,120]
[320824582,1711582246048,-500.0,0.00054246,30]
[320824583,1711582246060,-500.0,0.00054246,120]
[320824584,1711582246070,-500.0,0.00054246,120]
[320824585,1711582246079,-155.0,0.00054246,120]
[320824586,1711582246088,-500.0,0.00054246,120]
[320824587,1711582246099,-500.0,0.00054246,120]
[320824588,1711582246109,-500.0,0.00054246,120]
[320824589,1711582246119,-500.0,0.00054246,120]
[320824590,1711582246129,-724.86,0.00054246,120]
[320824591,1711582246138,-500.0,0.00054246,120]
[320824592,1711582246147,-500.0,0.00054246,120]
[320824593,1711582246157,-500.0,0.00054246,2]
[320824594,1711582246166,-500.0,0.00054246,120]
[320824595,1711582246175,-500.0,0.00054246,120]
[320824596,1711582246185,-500.0,0.00054246,120]
[320824597,1711582246194,-500.0,0.00054246,120]
[320824598,1711582246203,-500.0,0.00054246,120]
[320824599,1711582246213,-500.0,0.00054246,120]
[320824600,1711582246222,-500.0,0.00054246,120]
[320824601,1711582246231,-500.0,0.00054246,120]
[320824602,1711582246241,-500.0,0.00054246,120]
[320824603,1711582246251,-500.0,0.00054246,7]
[320824604,1711582246260,-500.0,0.00054246,120]
[320824605,1711582246270,-708.35,0.00054246,120]
[320824606,1711582246279,-1010.65,0.00054246,120]
[320824607,1711582246288,-925.04,0.00054246,120]
[320824608,1711582246297,-500.0,0.00054246,120]
[320824609,1711582246307,-500.0,0.00054246,120]
[320824610,1711582246316,-500.0,0.00054246,120]
[320824611,1711582246331,-500.0,0.00054246,120]
[320824612,1711582246355,-715.93,0.00054246,120]
[320824613,1711582246372,-500.0,0.00054246,120]
[320824614,1711582246391,-574.28,0.00054246,120]
[320824615,1711582246410,-540.36,0.00054246,120]
[320824616,1711582246427,-524.87,0.00054246,120]
[320824617,1711582246444,-234.54,0.00054246,120]
[320824618,1711582246462,-500.0,0.00054246,120]
[320824619,1711582246479,-500.0,0.00054246,120]
[320824620,1711582246498,-500.0,0.00054246,120]
[320824621,1711582246515,-500.0,0.00054246,120]
[320824622,1711582246534,-2224.17,0.00054246,120]
[320824623,1711582246554,-500.0,0.00054246,120]
[320824624,1711582246573,-500.0,0.00054246,120]
[320824625,1711582246589,-500.0,0.00054246,120]
[320824626,1711582246606,-500.0,0.00054246,120]
[320824627,1711582246620,-500.0,0.00054246,120]
[320824628,1711582246636,-500.0,0.00054246,120]
[320824629,1711582246653,-500.0,0.00054246,120]
[320824630,1711582246673,-500.0,0.00054246,120]
[320824631,1711582246688,-500.0,0.00054246,120]
[320824632,1711582246702,-500.0,0.00054246,120]
[320824633,1711582246718,-1011.6,0.00054246,120]
[320824634,1711582246732,-500.0,0.00054246,120]
[320824635,1711582246748,-871.39,0.00054246,120]
[320824636,1711582246763,-500.0,0.00054246,120]
[320824637,1711582246777,-500.0,0.00054246,120]
[320824638,1711582246791,-500.0,0.00054246,120]
[320824639,1711582246806,-500.0,0.00054246,120]
[320824640,1711582246822,-500.0,0.00054246,120]
[320824641,1711582246839,-506.34035184,0.00054246,120]
[320824642,1711582246856,-500.0,0.00054246,120]
[320824643,1711582246871,-500.0,0.00054246,120]
[320824644,1711582246886,-500.0,0.00054246,120]
[320824645,1711582246900,-1296.23,0.00054246,120]
[320824646,1711582246916,-500.0,0.00054246,120]
[320824647,1711582246931,-500.0,0.00054246,120]
[320824648,1711582246945,-500.0,0.00054246,120]
[320824649,1711582246960,-500.0,0.00054246,120]
[320824650,1711582246974,-500.0,0.00054246,120]
[320824651,1711582246988,-500.0,0.00054246,120]
[320824652,1711582247003,-500.0,0.00054246,120]
[320824653,1711582247017,-500.0,0.00054246,120]
[320824654,1711582247032,-500.0,0.00054246,120]
[320824655,1711582247046,-1488.2,0.00054246,120]
[320824656,1711582247062,-500.0,0.00054246,120]
[320824657,1711582247077,-500.0,0.00054246,120]
[320824658,1711582247091,-500.0,0.00054246,120]
[320824659,1711582247106,-500.0,0.00054246,120]
[320824660,1711582247120,-500.0,0.00054246,120]
[320824661,1711582247135,-500.0,0.00054246,120]
[320824662,1711582247149,-500.0,0.00054246,120]
[320824663,1711582247163,-406.13851157,0.00054246,120]
[320824664,1711582247177,-340.62,0.00054246,120]
[320824665,1711582247191,-500.0,0.00054246,120]
[320824666,1711582247205,-463.78197277,0.00054246,120]
[320824667,1711582247219,-500.0,0.00054246,120]
[320824668,1711582247235,-516.04,0.00054246,120]
[320824669,1711582247250,-732.45,0.00054246,120]
[320824670,1711582247263,-500.0,0.00054246,120]
[320824671,1711582247273,-500.0,0.00054246,120]
[320824672,1711582247282,-1173.04,0.00054246,120]
[320824673,1711582247292,-607.71,0.00054246,120]
[320824674,1711582247301,-558.2,0.00054246,120]
[320824675,1711582247310,-500.0,0.00054246,120]
[320824676,1711582247319,-267.46,0.00054246,120]
[320824677,1711582247329,-938.73,0.00054246,120]
[320824678,1711582247338,-500.0,0.00054246,120]
[320824679,1711582247348,-500.0,0.00054246,120]
[320824680,1711582247358,-500.0,0.00054246,120]
[320824681,1711582247581,-500.0,0.00054246,120]
[320824682,1711582247608,-646.63,0.00054246,120]
[320824683,1711582247627,-500.0,0.00054246,120]
[320824684,1711582247637,-500.0,0.00054246,120]
[320824685,1711582247646,-500.0,0.00054246,120]
[320824686,1711582247655,-200.10030026,0.00054246,120]
[320824687,1711582247665,-1198.79,0.00054246,120]
[320824688,1711582247674,-500.0,0.00054246,120]
[320824689,1711582247683,-1028.3,0.00054246,120]
[320824690,1711582247692,-1415.14,0.00054246,120]
[320824691,1711582247701,-150.21,0.00054246,120]
[320824692,1711582247710,-724.54,0.00054246,120]
[320824693,1711582247720,-500.0,0.00054246,120]
[320824694,1711582247730,-843.48,0.00054246,120]
[320824695,1711582247740,-536.33,0.00054246,120]
[320824696,1711582247750,-1761.33,0.00054246,120]
[320824697,1711582247759,-1231.05,0.00054246,120]
[320824698,1711582247768,-578.43,0.00054246,120]
[320824699,1711582247778,-300.0,0.00054246,2]
[320824700,1711582247786,-543.84,0.00054246,120]
[320824701,1711582247796,-385.19,0.00054246,120]
[320824702,1711582247805,-1570.56,0.00054246,120]
[320824703,1711582247814,-1679.91,0.00054246,120]
[320824704,1711582247823,-500.0,0.00054246,120]
[320824705,1711582247832,-500.0,0.00054246,120]
[320824706,1711582247845,-549.47,0.00054246,120]
[320824707,1711582247856,-500.0,0.00054246,120]
[320824708,1711582247865,-500.0,0.00054246,120]
[320824709,1711582247874,-880.15,0.00054246,120]
[320824710,1711582247883,-2969.89,0.00054246,120]
[320824711,1711582247892,-500.0,0.00054246,120]
[320824712,1711582247901,-500.0,0.00054246,120]
[320824713,1711582247911,-789.14,0.00054246,120]
[320824714,1711582247921,-989.52,0.00054246,120]
[320824715,1711582247931,-500.0,0.00054246,120]
[320824716,1711582247940,-1235.78,0.00054246,120]
[320824717,1711582247949,-546.65902254,0.00054246,120]
[320824718,1711582247958,-591.75,0.00054246,120]
[320824719,1711582247967,-1090.46,0.00054246,120]
[320824720,1711582247976,-500.0,0.00054246,120]
[320824721,1711582247985,-6076.61,0.00054246,120]
[320824722,1711582247994,-500.0,0.00054246,120]
[320824723,1711582248003,-1858.8,0.00054246,120]
[320824724,1711582248013,-630.79,0.00054246,120]
[320824725,1711582248022,-1342.76,0.00054246,120]
[320824726,1711582248031,-8283.25,0.00054246,120]
[320824727,1711582248048,-500.0,0.00054246,120]
[320824728,1711582248061,-500.0,0.00054246,120]
[320824729,1711582248070,-602.4,0.00054246,120]
[320824730,1711582248079,-500.0,0.00054246,120]
[320824731,1711582248089,-908.79,0.00054246,120]
[320824732,1711582248099,-885.97,0.00054246,120]
[320824733,1711582248108,-973.16,0.00054246,120]
[320824734,1711582248118,-857.0,0.00054246,120]
[320824735,1711582248128,-704.25,0.00054246,120]
[320824736,1711582248138,-796.57,0.00054246,120]
[320824737,1711582248147,-500.0,0.00054246,120]
[320824738,1711582248157,-500.0,0.00054246,120]
[320824739,1711582248166,-500.0,0.00054246,120]
[320824740,1711582248176,-500.0,0.00054246,120]
[320824741,1711582248185,-4806.31,0.00054246,120]
[320824742,1711582248195,-1333.39,0.00054246,120]
[320824743,1711582248204,-921.17,0.00054246,120]
[320824744,1711582248213,-2022.16,0.00054246,120]
[320824745,1711582248223,-577.63,0.00054246,120]
[320824746,1711582248232,-500.0,0.00054246,120]
[320824747,1711582248242,-500.0,0.00054246,120]
[320824748,1711582248251,-1458.82,0.00054246,21]
[320824749,1711582248262,-706.87,0.00054246,120]
[320824750,1711582248271,-2010.88,0.00054246,120]
[320824751,1711582248280,-823.31,0.00054246,120]
[320824752,1711582248289,-986.8,0.00054246,120]
[320824753,1711582248299,-1246.54,0.00054246,120]
[320824754,1711582248308,-500.0,0.00054246,120]
[320824755,1711582248317,-881.63,0.00054246,120]
[320824756,1711582248327,-500.0,0.00054246,120]
[320824757,1711582248336,-2363.76,0.00054246,120]
[320824758,1711582248345,-931.84,0.00054246,120]
[320824759,1711582248355,-502.38,0.00054246,120]
[320824760,1711582248365,-1065.67,0.00054246,120]
[320824761,1711582248374,-5720.79,0.00054246,120]
[320824762,1711582248382,-500.0,0.00054246,120]
[320824763,1711582248391,-887.22,0.00054246,120]
[320824764,1711582248401,-2004.37,0.00054246,120]
[320824765,1711582248410,-1302.41,0.00054246,120]
[320824766,1711582248419,-1422.68,0.00054246,120]
[320824767,1711582248429,-500.0,0.00054246,120]
[320824768,1711582248438,-500.0,0.00054246,120]
[320824769,1711582248447,-500.0,0.00054246,120]
[320824770,1711582248457,-1207.98,0.00054246,120]
[320824771,1711582248466,-500.0,0.00054246,120]
[320824772,1711582248475,-500.0,0.00054246,120]
[320824773,1711582248485,-543.85,0.00054246,120]
[320824774,1711582248494,-500.0,0.00054246,120]
[320824775,1711582248503,-500.0,0.00054246,120]
[320824776,1711582248513,-500.0,0.00054246,120]
[320824777,1711582248522,-570.1,0.00054246,120]
[320824778,1711582248531,-500.0,0.00054246,120]
[320824779,1711582248540,-1071.53,0.00054246,120]
[320824780,1711582248550,-1867.45,0.00054246,120]
[320824781,1711582248560,-519.4,0.00054246,120]
[320824782,1711582248569,-1299.35,0.00054246,120]
[320824783,1711582248579,-612.57,0.00054246,120]
[320824784,1711582248588,-500.0,0.00054246,120]
[320824785,1711582248599,-576.18,0.00054246,120]
[320824786,1711582248608,-1934.41,0.00054246,120]
[320824787,1711582248618,-500.0,0.00054246,7]
[320824788,1711582248627,-500.0,0.00054246,120]
[320824789,1711582248637,-500.0,0.00054246,120]
[320824790,1711582248646,-1239.01,0.00054246,120]
[320824791,1711582248656,-500.0,0.00054246,120]
[320824792,1711582248665,-717.4,0.00054246,120]
[320824793,1711582248674,-786.85,0.00054246,120]
[320824794,1711582248684,-500.0,0.00054246,120]
[320824795,1711582248694,-760.77,0.00054246,120]
[320824796,1711582248703,-691.7,0.00054246,120]
[320824797,1711582248712,-500.0,0.00054246,120]
[320824798,1711582248722,-500.0,0.00054246,120]
[320824799,1711582248731,-3084.29,0.00054246,120]
[320824800,1711582248741,-1627.27,0.00054246,120]
[320824801,1711582248750,-500.0,0.00054246,120]
[320824802,1711582248760,-500.0,0.00054246,120]
[320824803,1711582248770,-657.39,0.00054246,120]
[320824804,1711582248779,-1443.9,0.00054246,120]
[320824805,1711582248789,-2992.6,0.00054246,120]
[320824806,1711582248798,-1040.95,0.00054246,120]
[320824807,1711582248807,-500.0,0.00054246,120]
[320824808,1711582248817,-2455.21,0.00054246,120]
[320824809,1711582248827,-500.0,0.00054246,120]
[320824810,1711582248840,-2310.93,0.00054246,120]
[320824811,1711582248850,-2217.18,0.00054246,120]
[320824812,1711582248859,-500.0,0.00054246,120]
[320824813,1711582248868,-1482.18,0.00054246,120]
[320824814,1711582248878,-1508.98,0.00054246,120]
[320824815,1711582248887,-863.58,0.00054246,120]
[320824816,1711582248897,-640.45,0.00054246,120]
[320824817,1711582248906,-500.0,0.00054246,120]
[320824818,1711582248917,-500.0,0.00054246,120]
[320824819,1711582248926,-1085.99,0.00054246,120]
[320824820,1711582248935,-842.72,0.00054246,120]
[320824821,1711582248945,-1920.68,0.00054246,120]
[320824822,1711582248954,-500.0,0.00054246,120]
[320824823,1711582248963,-1525.09,0.00054246,120]
[320824824,1711582248972,-598.96,0.00054246,120]
[320824825,1711582248981,-1330.92,0.00054246,120]
[320824826,1711582248990,-500.95937178,0.00054246,2]
[320824827,1711582249000,-713.97,0.00054246,120]
[320824828,1711582249010,-1584.12,0.00054246,120]
[320824829,1711582249020,-688.56,0.00054246,120]
[320824830,1711582249029,-8479.64,0.00054246,120]
[320824831,1711582249038,-537.81,0.00054246,120]
[320824832,1711582249047,-783.93,0.00054246,120]
[320824833,1711582249056,-1561.29,0.00054246,120]
[320824834,1711582249066,-2134.84,0.00054246,120]
[320824835,1711582249075,-500.0,0.00054246,120]
[320824836,1711582249084,-1706.99,0.00054246,120]
[320824837,1711582249093,-500.0,0.00054246,120]
[320824838,1711582249104,-1688.88,0.00054246,120]
[320824839,1711582249113,-2476.1,0.00054246,120]
[320824840,1711582249123,-500.0,0.00054246,120]
[320824841,1711582249133,-2721.31,0.00054246,120]
[320824842,1711582249142,-500.0,0.00054246,120]
[320824843,1711582249151,-769.45,0.00054246,120]
[320824844,1711582249161,-1292.32,0.00054246,120]
[320824845,1711582249170,-843.25,0.00054246,120]
[320824846,1711582249179,-1479.47,0.00054246,120]
[320824847,1711582249188,-536.46,0.00054246,120]
[320824848,1711582249197,-846.23,0.00054246,120]
[320824849,1711582249206,-500.0,0.00054246,120]
[320824850,1711582249215,-2023.07,0.00054246,120]
[320824851,1711582249225,-1724.91,0.00054246,120]
[320824852,1711582249234,-727.27,0.00054246,120]
[320824853,1711582249244,-1131.39,0.00054246,120]
[320824854,1711582249253,-890.66,0.00054246,120]
[320824855,1711582249264,-668.93,0.00054246,120]
[320824856,1711582249273,-299.0,0.00054246,120]
[320824857,1711582249282,-925.94,0.00054246,120]
[320824858,1711582249291,-1902.5,0.00054246,120]
[320824859,1711582249301,-500.0,0.00054246,120]
[320824860,1711582249311,-868.08,0.00054246,120]
[320824861,1711582249322,-500.0,0.00054246,120]
[320824862,1711582249332,-500.0,0.00054246,120]
[320824863,1711582249342,-500.0,0.00054246,120]
[320824864,1711582249352,-1699.88,0.00054246,120]
[320824865,1711582249362,-1654.21,0.00054246,120]
[320824866,1711582249371,-1275.65,0.00054246,120]
[320824867,1711582249380,-1062.14,0.00054246,120]
[320824868,1711582249390,-500.0,0.00054246,120]
[320824869,1711582249399,-1077.37,0.00054246,120]
[320824870,1711582249408,-349.07,0.00054246,120]
[320824871,1711582249417,-357.55799942,0.00054246,120]
[320824872,1711582249427,-1245.23,0.00054246,120]
[320824873,1711582249436,-1161.25,0.00054246,120]
[320824874,1711582249446,-1543.3,0.00054246,120]
[320824875,1711582249456,-398.12009887,0.00054246,120]
[320824876,1711582249464,-500.0,0.00054246,120]
[320824877,1711582249474,-1159.81,0.00054246,120]
[320824878,1711582249483,-500.0,0.00054246,120]
[320824879,1711582249493,-1174.74,0.00054246,120]
[320824880,1711582249503,-1764.87,0.00054246,120]
[320824881,1711582249512,-2151.68,0.00054246,120]
[320824882,1711582249521,-953.04,0.00054246,120]
[320824883,1711582249530,-1204.37,0.00054246,120]
[320824884,1711582249539,-500.0,0.00054246,120]
[320824885,1711582249548,-1194.83,0.00054246,120]
[320824886,1711582249557,-500.0,0.00054246,120]
[320824887,1711582249566,-500.0,0.00054246,120]
[320824888,1711582249575,-1692.26,0.00054246,120]
[320824889,1711582249584,-2828.19,0.00054246,120]
[320824890,1711582249594,-605.59420292,0.00054246,2]
[320824891,1711582249604,-500.0,0.00054246,120]
[320824892,1711582249613,-500.0,0.00054246,120]
[320824893,1711582249622,-1627.01,0.00054246,120]
[320824894,1711582249632,-500.0,0.00054246,120]
[320824895,1711582249641,-969.77,0.00054246,120]
[320824896,1711582249650,-1087.56,0.00054246,120]
[320824897,1711582249659,-500.0,0.00054246,120]
[320824898,1711582249668,-625.29,0.00054246,120]
[320824899,1711582249677,-196.72,0.00054246,120]
[320824900,1711582249686,-500.0,0.00054246,120]
[320824901,1711582249695,-500.0,0.00054246,2]
[320824902,1711582249704,-2131.3,0.00054246,120]
[320824903,1711582249713,-1056.47,0.00054246,120]
[320824904,1711582249723,-657.26,0.00054246,120]
[320824905,1711582249732,-1610.97,0.00054246,120]
[320824906,1711582249742,-847.35,0.00054246,120]
[320824907,1711582249751,-500.0,0.00054246,120]
[320824908,1711582249760,-1047.43,0.00054246,120]
[320824909,1711582249770,-500.0,0.00054246,120]
[320824910,1711582249779,-517.36,0.00054246,120]
[320824911,1711582249789,-1749.48,0.00054246,120]
[320824912,1711582249798,-500.0,0.00054246,120]
[320824913,1711582249807,-500.0,0.00054246,120]
[320824914,1711582249816,-500.0,0.00054246,120]
[320824915,1711582249830,-500.0,0.00054246,120]
[320824916,1711582249839,-532.15,0.00054246,120]
[320824917,1711582249848,-500.0,0.00054246,120]
[320824918,1711582249858,-1450.37,0.00054246,120]
[320824919,1711582249868,-2560.63,0.00054246,120]
[320824920,1711582249877,-500.0,0.00054246,120]
[320824921,1711582249886,-500.0,0.00054246,120]
[320824922,1711582249896,-1306.34,0.00054246,120]
[320824923,1711582249906,-1033.72,0.00054246,120]
[320824924,1711582249915,-500.0,0.00054246,120]
[320824925,1711582249924,-500.0,0.00054246,120]
[320824926,1711582249933,-682.51,0.00054246,120]
[320824927,1711582249942,-2452.49,0.00054246,120]
[320824928,1711582249951,-581.97,0.00054246,120]
[320824929,1711582249960,-671.89,0.00054246,120]
[320824930,1711582249969,-702.53,0.00054246,120]
[320824931,1711582249979,-884.17,0.00054246,120]
[320824932,1711582249988,-1774.88,0.00054246,120]
[320824933,1711582249997,-150.0,0.00054251,7]
[320824934,1711582250007,-150.0,0.00054264,7]
[320824935,1711582250016,-158.12639607,0.00054274,60]
[320824936,1711582250025,-150.0,0.00054278,7]
[320824937,1711582250035,-150.0,0.00054301,7]
[320824938,1711582250044,-150.0,0.00054328,7]
[320824939,1711582250053,-154.13434477,0.00054342,60]
[320824940,1711582250063,-150.0,0.00054351,7]
[320824941,1711582250072,-150.0,0.00054358,7]
[320824942,1711582250081,-150.0,0.0005436,7]
[320824943,1711582250091,-150.0,0.00054364,7]
[320824944,1711582250100,-150.0,0.00054379,7]
[320824945,1711582250110,-150.0,0.00054386,7]
[320824946,1711582250120,-150.0,0.00054392,7]
[320824947,1711582250129,-150.0,0.00054398,7]
[320824948,1711582250139,-1000.0,0.0005442,2]
[320824949,1711582250149,-150.0,0.0005442,7]
[320824950,1711582250158,-150.0,0.00054421,7]
[320824951,1711582250167,-150.0,0.00054431,7]
[320824952,1711582250176,-150.0,0.00054446,7]
[320824953,1711582250189,-150.0,0.00054447,7]
[320824954,1711582250198,-157.032808,0.00054448,116]
[320824955,1711582250208,-150.0,0.0005446,7]
[320824956,1711582250217,-150.0,0.00054466,7]
[320824957,1711582250227,-151.01057888,0.0005447,61]
[320824958,1711582250236,-150.0,0.00054481,7]
[320824959,1711582250246,-150.0,0.0005449,7]
[320824960,1711582250255,-150.0,0.00054499,7]
[320824961,1711582250265,-150.0,0.000545,33]
[320824962,1711582250275,-479.0,0.000545,43]
[320824963,1711582250285,-472.0,0.000545,33]
[320824964,1711582250295,-150.0,0.000545,11]
[320824965,1711582250304,-256.23413638,0.00054505,7]
[320824966,1711582250314,-150.0,0.00054506,7]
[320824967,1711582250324,-150.0,0.00054508,7]
[320824968,1711582250496,-150.0,0.0005451,7]
[320824969,1711582250505,-87416.92523,0.0005451,30]
[320824970,1711582250515,-151.0,0.0005451,120]
[320824971,1711582250524,-3800.0528549,0.0005451,2]
[320824972,1711582250533,-200.61373683,0.0005451,2]
[320824973,1711582250542,-151.0,0.0005451,120]
[320824974,1711582250552,-151.0,0.0005451,120]
[320824975,1711582250561,-150.0,0.00054518,7]
[320824976,1711582250570,-1000.0,0.00054519,120]
[320824977,1711582250580,-500.635869,0.0005452,2]
[320824978,1711582250589,-500.0,0.0005452,120]
[320824979,1711582250599,-500.0,0.0005452,120]
[320824980,1711582250609,-500.0,0.0005452,120]
[320824981,1711582250618,-500.0,0.0005452,120]
[320824982,1711582250628,-500.0,0.0005452,120]
[320824983,1711582250637,-500.0,0.0005452,120]
[320824984,1711582250646,-500.0,0.0005452,120]
[320824985,1711582250657,-500.0,0.0005452,120]
[320824986,1711582250666,-500.0,0.0005452,120]
[320824987,1711582250675,-500.0,0.0005452,120]
[320824988,1711582250685,-500.0,0.0005452,120]
[320824989,1711582250695,-580.11,0.0005452,120]
[320824990,1711582250705,-500.0,0.0005452,120]
[320824991,1711582250714,-332.75089043,0.0005452,120]
[320824992,1711582250723,-500.0,0.0005452,120]
[320824993,1711582250732,-500.0,0.0005452,120]
[320824994,1711582250742,-500.0,0.0005452,120]
[320824995,1711582250752,-500.0,0.0005452,120]
[320824996,1711582250761,-500.0,0.0005452,120]
[320824997,1711582250771,-500.0,0.0005452,120]
[320824998,1711582250780,-500.0,0.0005452,120]